fUSD/lending_fUSD_20260309
["ID","MTS","AMOUNT","RATE_DAILY","PERIOD"]
[408009514,1773019840529,-500.0,0.00019999,2]
[408009515,1773019840538,-500.0,0.00019999,2]
[408009516,1773019840547,-500.0,0.00019999,2]
[408009517,1773019840557,-500.0,0.00019999,2]
[408009518,1773019840567,-500.0,0.00019999,2]
[408009519,1773019840577,-500.0,0.00019999,2]
[408009520,1773019840586,-500.0,0.00019999,2]
[408009521,1773019840595,-550.0,0.00019999,2]
[408009522,1773019840604,-500.0,0.00019999,2]
[408009523,1773019840613,-500.0,0.00019999,2]
[408009524,1773019840622,-500.0,0.00019999,2]
[408009525,1773019840631,-500.0,0.00019999,2]
[408009526,1773019840642,-500.0,0.00019999,2]
[408009528,1773019840651,-500.0,0.00019999,2]
[408009530,1773019840660,-500.0,0.00019999,2]
[408009532,1773019840670,-158.50997092,0.00019999,2]
[408009534,1773019840679,-240.06683403,0.0002,2]
[408009535,1773019840688,-181443.41829931,0.0002,2]
[408009536,1773019840700,-22490.60853326,0.0002,2]
[408009537,1773019840711,-1052.63044779,0.0002,2]
[408009538,1773019840722,-674.31697664,0.0002,2]
[408009539,1773019840852,-2101430.62466181,0.0002,2]
[408009540,1773019840861,-1000.0,0.0002,2]
[408009541,1773019840870,-172.96383299,0.0002,2]
[408009542,1773019840880,-30000.0,0.0002,2]
[408009543,1773019840889,-1000.0,0.0002,2]
[408009544,1773019840898,-200.191167,0.0002,2]
[408009545,1773019840907,-539261.80106736,0.0002,2]
[408009546,1773019840916,-649628.67223644,0.0002,2]
[408009549,1773019843230,-9287.51141825,0.0002,2]
[408009552,1773019845998,-500.0,0.0001582,2]
[408009553,1773019846008,-1392.08586968,0.00019083,2]
[408009554,1773019846017,-3009.06522443,0.00019513,2]
[408009555,1773019846110,-311.39477557,0.00019513,2]
[408009556,1773019846121,-425.32611708,0.000196,2]
[408009557,1773019846130,-500.0,0.00019609,2]
[408009558,1773019846139,-500.0,0.00019899,2]
[408009559,1773019846148,-150.0,0.00019999,2]
[408009560,1773019846157,-377.93854833,0.00019999,2]
[408009561,1773019846166,-9445.31058932,0.0002,2]
[408009563,1773019937297,500.0,8e-05,2]
[408009564,1773019937777,500.0,8e-05,2]
[408009565,1773019939037,500.0,8e-05,2]
[408009566,1773019939071,500.0,8e-05,2]
[408009567,1773019939104,764.99473768,8e-05,2]
[408009568,1773019939133,500.0,8e-05,2]
[408009569,1773019939416,500.0,8e-05,2]
[408009570,1773019939882,500.0,8e-05,2]
[408009571,1773019940199,500.0,8e-05,2]
[408009572,1773019940354,666.9718326,8e-05,2]
[408009573,1773019940682,500.0,8e-05,2]
[408009574,1773019941196,500.0,8e-05,2]
[408009575,1773019941794,500.0,8e-05,2]
[408009576,1773019942304,500.0,8e-05,2]
[408009577,1773019942803,500.0,8e-05,2]
[408009578,1773019943296,500.0,8e-05,2]
[408009579,1773019943747,500.0,8e-05,2]
[408009580,1773019944219,725.39056168,8e-05,2]
[408009581,1773019944737,500.0,8e-05,2]
[408009582,1773019945198,500.0,8e-05,2]
[408009583,1773019945659,500.87513639,8e-05,2]
[408009584,1773019945686,500.0,8e-05,2]
[408009585,1773019946165,500.0,8e-05,2]
[408009586,1773019946668,500.0,8e-05,2]
[408009587,1773019946701,500.0,8e-05,2]
[408009588,1773019947155,500.0,8e-05,2]
[408009589,1773019947189,500.0,8e-05,2]
[408009590,1773019947669,650.75817212,8e-05,2]
[408009591,1773019948336,500.0,8e-05,2]
[408009592,1773019948810,500.0,8e-05,2]
[408009593,1773019950066,122.98612981,8e-05,2]
[408009594,1773019950090,377.01387019,8e-05,2]
[408009595,1773019950131,500.0,8e-05,2]
[408009596,1773019950172,507.45359249,8e-05,2]
[408009597,1773019950207,508.76593059,8e-05,2]
[408009598,1773019951160,500.0,8e-05,2]
[408009599,1773019951652,500.0,8e-05,2]
[408009600,1773019952002,500.0,8e-05,2]
[408009601,1773019952133,500.0,8e-05,2]
[408009602,1773019952478,500.0,8e-05,2]
[408009603,1773019952937,500.0,8e-05,2]
[408009604,1773019953236,500.0,8e-05,2]
[408009605,1773019953742,500.0,8e-05,2]
[408009606,1773019953890,741.43495187,8e-05,2]
[408009607,1773019954251,500.0,8e-05,2]
[408009608,1773019954738,500.0,8e-05,2]
[408009609,1773019955290,507.65021538,8e-05,2]
[408009610,1773019955989,500.0,8e-05,2]
[408009611,1773019956226,500.0,8e-05,2]
[408009612,1773019956708,500.0,8e-05,2]
[408009613,1773019957206,357.69143948,8e-05,2]
[408009614,1773019957227,563.27757351,8e-05,2]
[408009615,1773019987580,193.0,0.00011503,2]
[408009618,1773020164878,176.0,0.00011503,2]
[408009619,1773020225031,507.346963,0.0002,120]
[408009620,1773020237330,566.07178309,8e-05,2]
[408009621,1773020238707,500.0,8e-05,2]
[408009622,1773020239207,601.01344403,8e-05,2]
[408009623,1773020240473,500.0,8e-05,2]
[408009624,1773020241791,500.0,8e-05,2]
[408009625,1773020241826,500.0,8e-05,2]
[408009626,1773020241960,500.0,8e-05,2]
[408009627,1773020242442,500.0,8e-05,2]
[408009628,1773020242946,500.0,8e-05,2]
[408009629,1773020243406,995.33893928,8e-05,2]
[408009630,1773020244789,500.0,8e-05,2]
[408009631,1773020245273,500.0,8e-05,2]
[408009632,1773020245741,500.0,8e-05,2]
[408009633,1773020246215,500.0,8e-05,2]
[408009634,1773020246671,648.38491853,8e-05,2]
[408009635,1773020251556,756.92334156,8e-05,2]
[408009636,1773020251579,235.05615836,8e-05,2]
[408009638,1773020358288,-186.29082771,0.00013498,2]
[408009640,1773020403245,261.0,0.00013498,2]
[408009641,1773020411120,189.0,0.00013498,2]
[408009645,1773020447615,164.08,0.0002,120]
[408009647,1773020471549,173.0,0.00013498,2]
[408009648,1773020526249,171.0,0.00013498,2]
[408009649,1773020534271,-250.0,0.00013498,2]
[408009650,1773020534304,-173.79385884,0.00013499,2]
[408009651,1773020537041,500.6015342,8.498e-05,2]
[408009652,1773020538789,500.0,8.498e-05,2]
[408009653,1773020539263,500.0,8.498e-05,2]
[408009654,1773020539787,500.0,8.498e-05,2]
[408009655,1773020540264,500.0,8.498e-05,2]
[408009656,1773020542013,500.0,8.498e-05,2]
[408009657,1773020542491,500.0,8.498e-05,2]
[408009658,1773020542962,500.0,8.498e-05,2]
[408009659,1773020544440,834.56315158,8.498e-05,2]
[408009660,1773020544509,500.0,8.498e-05,2]
[408009661,1773020544990,500.0,8.498e-05,2]
[408009662,1773020545461,500.0,8.498e-05,2]
[408009663,1773020545918,500.0,8.498e-05,2]
[408009664,1773020546391,500.0,8.498e-05,2]
[408009665,1773020546853,500.0,8.498e-05,2]
[408009666,1773020547321,500.0,8.498e-05,2]
[408009667,1773020547475,500.0,8.498e-05,2]
[408009668,1773020547954,317.25759654,8.498e-05,2]
[408009669,1773020547978,182.74240346,8.498e-05,2]
[408009670,1773020548119,500.0,8.498e-05,2]
[408009671,1773020548418,500.0,8.498e-05,2]
[408009672,1773020548592,500.0,8.498e-05,2]
[408009673,1773020548912,500.0,8.498e-05,2]
[408009674,1773020549102,500.0,8.498e-05,2]
[408009675,1773020549135,-3233.68886139,0.00013499,2]
[408009676,1773020549500,636.54725451,8.499e-05,2]
[408009677,1773020549538,500.0,8.499e-05,2]
[408009678,1773020549565,500.0,8.498e-05,2]
[408009679,1773020549982,500.0,8.499e-05,2]
[408009680,1773020550027,837.33,8.499e-05,2]
[408009681,1773020550071,500.0,8.498e-05,2]
[408009682,1773020550442,58.75502271,8.499e-05,2]
[408009683,1773020550463,441.24497729,8.499e-05,2]
[408009684,1773020550489,500.0,8.499e-05,2]
[408009685,1773020550527,665.03622694,8.498e-05,2]
[408009686,1773020551448,649.41967209,8.499e-05,2]
[408009687,1773020555223,500.0,8.499e-05,2]
[408009688,1773020555262,500.0,8.499e-05,2]
[408009689,1773020555291,500.0,8.499e-05,2]
[408009690,1773020555371,500.0,8.499e-05,2]
[408009691,1773020555834,500.0,8.499e-05,2]
[408009692,1773020556295,500.0,8.499e-05,2]
[408009693,1773020566211,-163.13,0.000135,2]
[408009694,1773020566244,-2876.77,0.000135,2]
[408009695,1773020582521,-300.0,0.00013595,2]
[408009696,1773020582573,-300.0,0.00013595,2]
[408009697,1773020587616,7607.844459,7.945e-05,2]
[408009698,1773020817120,-500.0,0.00013598,2]
[408009699,1773020817141,-295.49,0.00013648,2]
[408009700,1773020817160,-500.0,0.0001368,2]
[408009701,1773020817184,-253.59377558,0.00013687,2]
[408009702,1773020817203,-341.46899427,0.00013776,2]
[408009703,1773020835709,-4708.9828356,0.00013776,2]
[408009704,1773020844690,500.0,8.598e-05,2]
[408009705,1773020844790,82.0443288,8.598e-05,2]
[408009706,1773020844814,417.9556712,8.598e-05,2]
[408009707,1773020846089,500.0,8.598e-05,2]
[408009708,1773020846126,500.0,8.598e-05,2]
[408009709,1773020846160,-150.0,0.00013843,2]
[408009710,1773020846222,517.28286247,8.598e-05,2]
[408009711,1773020848343,500.0,8.776e-05,2]
[408009712,1773020848812,500.0,8.776e-05,2]
[408009713,1773020849395,500.0,8.776e-05,2]
[408009714,1773020849870,500.0,8.776e-05,2]
[408009715,1773020852571,500.0,8.776e-05,2]
[408009716,1773020854016,190.26822222,0.00013699,2]
[408009717,1773020855270,700.0,8.598e-05,2]
[408009718,1773020855744,700.0,8.598e-05,2]
[408009719,1773020857197,700.0,8.598e-05,2]
[408009720,1773020857305,700.0,8.598e-05,2]
[408009721,1773020857653,700.0,8.598e-05,2]
[408009722,1773020858149,700.0,8.598e-05,2]
[408009723,1773020858669,700.0,8.598e-05,2]
[408009724,1773020859174,700.0,8.598e-05,2]
[408009725,1773020859646,700.0,8.598e-05,2]
[408009726,1773020860139,192.45891531,8.598e-05,2]
[408009727,1773020860161,507.54108469,8.598e-05,2]
[408009728,1773020860615,700.0,8.598e-05,2]
[408009729,1773020861083,700.0,8.598e-05,2]
[408009730,1773020861562,803.99093116,8.598e-05,2]
[408009731,1773020875690,-1852.42,0.00013954,2]
[408009735,1773020954069,-185.0,0.00014,2]
[408009736,1773020954090,-200.0,0.00014047,2]
[408009737,1773020954111,-1200.0,0.00014297,2]
[408009738,1773020954134,-570.116628,0.00014298,2]
[408009742,1773021032111,-194.745552,0.00013678,2]
[408009743,1773021032121,-197.39442979,0.0001371,2]
[408009744,1773021032222,-3462.54557021,0.0001371,2]
[408009745,1773021032231,-195.79,0.00014,2]
[408009746,1773021032241,-3659.94,0.00014052,2]
[408009747,1773021032252,-1200.0,0.00014297,2]
[408009748,1773021032262,-300.0,0.00014297,2]
[408009749,1773021032272,-4073.51935163,0.00014298,2]
[408009751,1773021032282,-4690.45253791,0.00014298,2]
[408009752,1773021032293,-268.0,0.00014298,2]
[408009753,1773021032302,-704.62,0.00014313,2]
[408009754,1773021032312,-195.79,0.00014339,2]
[408009755,1773021032321,-300.0,0.00014372,2]
[408009756,1773021032331,-500.0,0.00014373,2]
[408009758,1773021032341,-500.0,0.00014373,2]
[408009760,1773021032351,-500.0,0.00014373,2]
[408009763,1773021032361,-55100.76146436,0.00014387,2]
[408009765,1773021032371,-3659.94,0.00014395,2]
[408009766,1773021032385,-499.03336123,0.00014396,2]
[408009768,1773021032395,-150.0,0.00014396,2]
[408009770,1773021032404,-9999.99,0.00014397,2]
[408009772,1773021032413,-3809.44,0.00014397,2]
[408009773,1773021032424,-7321.29,0.00014397,2]
[408009774,1773021032433,-1453.47,0.00014397,2]
[408009775,1773021032442,-299.99,0.00014397,2]
[408009776,1773021032453,-150.99,0.00014397,2]
[408009777,1773021032462,-1615.55,0.00014397,2]
[408009778,1773021032470,-9999.99,0.00014397,2]
[408009779,1773021032479,-9999.99,0.00014397,2]
[408009780,1773021032488,-999.99,0.00014397,2]
[408009781,1773021032498,-9999.99,0.00014397,2]
[408009782,1773021032507,-1002.08186317,0.00014397,2]
[408009783,1773021032516,-500.0,0.00014398,2]
[408009784,1773021032525,-500.0,0.00014398,2]
[408009785,1773021032534,-500.0,0.00014398,2]
[408009786,1773021032543,-500.0,0.00014398,2]
[408009787,1773021032553,-500.0,0.00014398,2]
[408009788,1773021032562,-500.0,0.00014398,2]
[408009789,1773021032571,-500.0,0.00014398,2]
[408009790,1773021032580,-247434.99319873,0.00014398,2]
[408009791,1773021032592,-7057.42680127,0.00014398,2]
[408009792,1773021032601,-1566.25,0.00014398,2]
[408009793,1773021032611,-281.0,0.00014451,2]
[408009794,1773021032622,-1831.7,0.00014475,2]
[408009795,1773021032631,-765.68551834,0.00014522,2]
[408009796,1773021032641,-266.4641917,0.00014552,2]
[408009797,1773021032650,-3296.0,0.000146,5]
[408009798,1773021032659,-400.0,0.000146,5]
[408009799,1773021032669,-151.0,0.00014634,2]
[408009800,1773021032678,-151.0,0.00014634,2]
[408009801,1773021032687,-151.0,0.00014634,2]
[408009802,1773021032696,-195.79,0.00014678,2]
[408009803,1773021032706,-900.0,0.000147,5]
[408009804,1773021032716,-735.10550078,0.00014738,2]
[408009817,1773021038149,-2924.83449922,0.00014738,2]
[408009818,1773021038162,-355.49420309,0.000148,2]
[408009819,1773021038171,-5559.23826417,0.000148,2]
[408009820,1773021038182,-1889.75167279,0.000148,2]
[408009821,1773021038193,-1300.0,0.000148,5]
[408009822,1773021038202,-1449.4757,0.00014849,2]
[408009823,1773021038212,-500.0,0.00014873,2]
[408009824,1773021038221,-500.0,0.00014873,2]
[408009825,1773021038230,-500.0,0.00014873,2]
[408009826,1773021038240,-500.0,0.00014873,2]
[408009827,1773021038250,-500.0,0.00014873,2]
[408009828,1773021038260,-500.0,0.00014873,2]
[408009829,1773021038269,-500.0,0.00014873,2]
[408009830,1773021038278,-500.0,0.00014873,2]
[408009831,1773021038289,-500.0,0.00014873,2]
[408009832,1773021038297,-188.0,0.00014877,2]
[408009833,1773021038306,-222.74624931,0.0001489,2]
[408009834,1773021038315,-151.0,0.00014897,2]
[408009835,1773021038324,-151.0,0.00014897,2]
[408009836,1773021038334,-194.00601262,0.00014897,2]
[408009837,1773021038343,-498.20701445,0.00014897,2]
[408009838,1773021038352,-500.0,0.00014897,2]
[408009840,1773021038361,-717.15438027,0.00014897,2]
[408009841,1773021038372,-717.15438027,0.00014897,2]
[408009842,1773021038386,-493.39386795,0.00014897,2]
[408009843,1773021038395,-717.15438027,0.00014897,2]
[408009844,1773021038405,-717.15438027,0.00014897,2]
[408009845,1773021038416,-717.15438027,0.00014897,2]
[408009846,1773021038425,-717.15438027,0.00014897,2]
[408009847,1773021038435,-717.15438027,0.00014897,2]
[408009848,1773021038446,-717.15438027,0.00014897,2]
[408009849,1773021038456,-717.15438027,0.00014897,2]
[408009851,1773021038700,-717.15438027,0.00014897,2]
[408009852,1773021038733,-717.15438027,0.00014897,2]
[408009853,1773021038748,-717.15438027,0.00014897,2]
[408009854,1773021038758,-717.15438027,0.00014897,2]
[408009855,1773021038767,-717.15438027,0.00014897,2]
[408009856,1773021038775,-717.15438027,0.00014897,2]
[408009857,1773021038784,-717.15438027,0.00014897,2]
[408009858,1773021038793,-717.15438027,0.00014897,2]
[408009859,1773021038801,-717.15438027,0.00014897,2]
[408009860,1773021038810,-717.15438027,0.00014897,2]
[408009861,1773021038819,-717.15438027,0.00014897,2]
[408009862,1773021038828,-717.15438027,0.00014897,2]
[408009863,1773021038838,-717.15438027,0.00014897,2]
[408009864,1773021038847,-717.15438027,0.00014897,2]
[408009865,1773021038856,-717.15438027,0.00014897,2]
[408009866,1773021038865,-717.15438027,0.00014897,2]
[408009867,1773021038874,-717.15438027,0.00014897,2]
[408009868,1773021038883,-717.15438027,0.00014897,2]
[408009869,1773021038892,-717.15438027,0.00014897,2]
[408009870,1773021038902,-717.15438027,0.00014897,2]
[408009871,1773021038911,-717.15438027,0.00014897,2]
[408009872,1773021038920,-717.15438027,0.00014897,2]
[408009873,1773021038929,-717.15438027,0.00014897,2]
[408009874,1773021038938,-717.15438027,0.00014897,2]
[408009875,1773021038947,-717.15438027,0.00014897,2]
[408009876,1773021038956,-717.15438027,0.00014897,2]
[408009877,1773021038965,-717.15438027,0.00014897,2]
[408009878,1773021038974,-717.15438027,0.00014897,2]
[408009879,1773021038983,-717.15438027,0.00014897,2]
[408009880,1773021038992,-717.15438027,0.00014897,2]
[408009881,1773021039002,-717.15438027,0.00014897,2]
[408009882,1773021039011,-717.15438027,0.00014897,2]
[408009883,1773021039020,-717.15438027,0.00014897,2]
[408009884,1773021039029,-717.15438027,0.00014897,2]
[408009885,1773021039038,-717.15438027,0.00014897,2]
[408009886,1773021039047,-717.15438027,0.00014897,2]
[408009887,1773021039056,-717.15438027,0.00014897,2]
[408009888,1773021039065,-717.15438027,0.00014897,2]
[408009889,1773021039075,-717.15438027,0.00014897,2]
[408009890,1773021039084,-717.15438027,0.00014897,2]
[408009891,1773021039093,-717.15438027,0.00014897,2]
[408009892,1773021039102,-717.15438027,0.00014897,2]
[408009893,1773021039111,-717.15438027,0.00014897,2]
[408009894,1773021039120,-505.11348112,0.00014899,2]
[408009895,1773021039129,-701.51,0.00014899,2]
[408009896,1773021039138,-500.0,0.00014899,2]
[408009897,1773021039147,-500.0,0.00014899,2]
[408009898,1773021039156,-514.19444451,0.00014899,2]
[408009899,1773021039165,-500.0,0.00014899,2]
[408009900,1773021039174,-377.93854833,0.00014899,2]
[408009901,1773021039183,-521.62861803,0.00014899,2]
[408009902,1773021039192,-500.0,0.00014899,2]
[408009903,1773021039201,-500.0,0.00014899,2]
[408009904,1773021039210,-500.0,0.00014899,2]
[408009905,1773021039219,-527.18458678,0.00014899,2]
[408009906,1773021039227,-514.59184064,0.00014899,2]
[408009907,1773021039236,-500.0,0.00014899,2]
[408009908,1773021039245,-500.0,0.00014899,2]
[408009909,1773021039255,-500.0,0.00014899,2]
[408009910,1773021039264,-511.44410193,0.00014899,2]
[408009911,1773021039273,-525.39970089,0.00014899,2]
[408009912,1773021039282,-500.0,0.00014899,2]
[408009913,1773021039291,-500.0,0.00014899,2]
[408009914,1773021039300,-500.0,0.00014899,2]
[408009915,1773021039309,-516.44023853,0.00014899,2]
[408009916,1773021039319,-500.0,0.00014899,2]
[408009917,1773021039328,-500.0,0.00014899,2]
[408009918,1773021039337,-509.85494233,0.00014899,2]
[408009919,1773021039347,-2318816.7018,0.000149,2]
[408009920,1773021039356,-1800.0,0.000149,5]
[408009921,1773021039365,-4643.63597954,0.0001492,2]
[408009922,1773021039377,-1000.0,0.00014921,2]
[408009923,1773021039386,-1000.0,0.00014921,2]
[408009924,1773021039396,-1000.0,0.00014921,2]
[408009925,1773021039405,-250.0,0.00014958,2]
[408009926,1773021039417,-300.30611518,0.00014958,2]
[408009927,1773021039426,-250.0,0.00015,2]
[408009928,1773021039436,-158.25,0.00015,2]
[408009929,1773021039445,-501.12391094,0.00015,30]
[408009930,1773021039454,-500.0,0.00015,30]
[408009931,1773021039464,-500.0,0.00015,30]
[408009932,1773021039473,-700.0,0.00015,30]
[408009933,1773021039481,-500.0,0.00015,30]
[408009934,1773021039491,-500.0,0.00015,30]
[408009935,1773021039500,-700.0,0.00015,30]
[408009936,1773021039508,-783.06526647,0.00015,30]
[408009937,1773021039517,-500.0,0.00015,30]
[408009938,1773021039527,-500.0,0.00015,30]
[408009939,1773021039536,-500.0,0.00015,30]
[408009940,1773021039545,-500.0,0.00015,30]
[408009941,1773021039554,-500.0,0.00015,30]
[408009942,1773021039563,-500.2636592,0.00015,30]
[408009943,1773021039572,-500.0,0.00015,30]
[408009944,1773021039583,-500.0,0.00015,30]
[408009945,1773021039592,-500.0,0.00015,30]
[408009946,1773021039601,-500.0,0.00015,30]
[408009947,1773021039610,-500.0,0.00015,30]
[408009948,1773021039620,-974.24223008,0.00015,30]
[408009949,1773021039629,-500.0,0.00015,30]
[408009950,1773021039638,-700.0,0.00015,30]
[408009951,1773021039647,-700.0,0.00015,30]
[408009952,1773021039656,-700.0,0.00015,30]
[408009953,1773021039665,-700.0,0.00015,30]
[408009954,1773021039675,-500.0,0.00015,30]
[408009955,1773021039684,-700.0,0.00015,30]
[408009956,1773021039693,-500.0,0.00015,30]
[408009957,1773021039702,-700.0,0.00015,30]
[408009958,1773021039711,-700.0,0.00015,30]
[408009959,1773021039722,-700.0,0.00015,30]
[408009960,1773021039731,-700.0,0.00015,30]
[408009961,1773021039741,-700.0,0.00015,30]
[408009962,1773021039750,-700.0,0.00015,30]
[408009963,1773021039759,-195.79,0.00015017,2]
[408009964,1773021039768,-3659.94,0.0001508,2]
[408009965,1773021039777,-4690.4525379,0.00015098,2]
[408009966,1773021039786,-701.51,0.00015173,2]
[408009967,1773021039795,-150.0,0.0001524,2]
[408009968,1773021039804,-296.050996,0.00015242,2]
[408009969,1773021039813,-163.22533402,0.00015271,2]
[408009970,1773021039822,-195.79,0.00015357,2]
[408009971,1773021039832,-1000.0,0.00015421,2]
[408009972,1773021039841,-1000.0,0.00015421,2]
[408009973,1773021039851,-500.56489866,0.00015421,2]
[408009974,1773021039860,-1001.58412364,0.00015421,2]
[408009975,1773021039870,-1000.0,0.00015421,2]
[408009976,1773021039880,-1000.0,0.00015421,2]
[408009977,1773021039892,-1000.0,0.00015421,2]
[408009978,1773021039902,-1000.0,0.00015421,2]
[408009979,1773021039911,-450.72456411,0.00015421,2]
[408009980,1773021039921,-701.51,0.00015447,2]
[408009981,1773021039931,-1500.0,0.00015468,2]
[408009983,1773021039940,-1500.0,0.00015468,2]
[408009985,1773021039949,-500.0,0.00015468,2]
[408009986,1773021039959,-2104.57,0.00015471,2]
[408009987,1773021039968,-255.0,0.00015519,2]
[408009988,1773021039977,-4643.63597954,0.00015543,2]
[408009989,1773021039986,-195.79,0.00015696,2]
[408009990,1773021039995,-701.51,0.00015721,2]
[408009991,1773021040006,-5000.0,0.00015727,2]
[408009992,1773021040015,-1680.0,0.00015727,2]
[408009993,1773021040025,-500.0,0.0001582,2]
[408009994,1773021040034,-4690.4525379,0.00015899,2]
[408009995,1773021040043,-5021.18375973,0.0001596,2]
[408009996,1773021040052,-1500.0,0.00015968,2]
[408009997,1773021040061,-996.2004383,0.00015968,2]
[408009998,1773021040071,-1500.0,0.00015968,2]
[408009999,1773021040080,-1500.0,0.00015968,2]
[408010000,1773021040089,-286.77049345,0.00015968,2]
[408010001,1773021040098,-1500.0,0.00015968,2]
[408010002,1773021040107,-701.51,0.00015995,2]
[408010003,1773021040116,-200.0,0.00016,3]
[408010004,1773021040126,-384.01457508,0.00016,2]
[408010005,1773021040136,-1000.0,0.00016016,2]
[408010007,1773021040146,-2000.0,0.00016016,2]
[408010008,1773021040155,-195.79,0.00016035,2]
[408010010,1773021040164,-9999.99,0.00016116,2]
[408010012,1773021040173,-4643.63597954,0.00016165,2]
[408010014,1773021040183,-701.55614245,0.00016269,2]
[408010016,1773021040194,-195.79,0.00016374,2]
[408010018,1773021040205,-2001.9939705,0.00016516,2]
[408010019,1773021040214,-1651.8950769,0.00016516,2]
[408010020,1773021040224,-2001.8016713,0.00016516,2]
[408010021,1773021040233,-1503.42428956,0.00016516,2]
[408010022,1773021040242,-1000.0,0.00016564,2]
[408010023,1773021040251,-4690.4525379,0.00016699,2]
[408010024,1773021040260,-195.79,0.00016713,2]
[408010025,1773021040269,-433.0,0.00016728,2]
[408010026,1773021040279,-4643.63597954,0.00016788,2]
[408010027,1773021040287,-3424.26,0.0001698,2]
[408010028,1773021040296,-1435.74,0.0001698,2]
[408010029,1773021040306,-502.0,0.00017,2]
[408010030,1773021040315,-195.79,0.00017052,2]
[408010031,1773021040324,-2351.0,0.00017299,2]
[408010032,1773021040334,-355.49420307,0.0001735,2]
[408010033,1773021040343,-1889.75167277,0.0001735,2]
[408010034,1773021040354,-195.79,0.00017391,2]
[408010035,1773021040363,-4643.63597954,0.0001741,2]
[408010036,1773021040379,-4690.4525379,0.00017499,2]
[408010037,1773021040389,-195.79,0.0001773,2]
[408010038,1773021040399,-152.0,0.00017862,3]
[408010039,1773021040411,-5162.9977878,0.00018,3]
[408010040,1773021040420,-200.0,0.00018,4]
[408010041,1773021040431,-4643.63597954,0.00018033,2]
[408010042,1773021040440,-736.0,0.00018038,2]
[408010043,1773021040450,-195.79,0.0001807,2]
[408010044,1773021040460,-600.0,0.00018082,7]
[408010045,1773021040469,-1700.0,0.00018082,7]
[408010046,1773021040478,-1400.0,0.00018082,7]
[408010047,1773021040487,-2925.35,0.0001811,2]
[408010048,1773021040496,-152.0,0.00018216,4]
[408010049,1773021040506,-474.83660499,0.00018256,2]
[408010050,1773021040515,-4690.4525379,0.00018299,2]
[408010051,1773021040524,-502.0,0.0001834,3]
[408010052,1773021040533,-195.79,0.00018409,2]
[408010053,1773021040543,-2925.35,0.00018411,2]
[408010054,1773021040552,-1826.58,0.00018533,2]
[408010055,1773021040561,-19999.99,0.00018533,2]
[408010056,1773021040571,-23887.51,0.00018533,2]
[408010057,1773021040581,-1253.73,0.00018567,2]
[408010058,1773021040590,-152.0,0.0001857,5]
[408010059,1773021040600,-275.4,0.00018584,2]
[408010060,1773021040609,-4643.63597954,0.00018655,2]
[408010061,1773021040619,-2925.35,0.00018687,2]
[408010062,1773021040628,-195.79,0.00018748,2]
[408010063,1773021040637,-1206.0,0.00018791,2]
[408010064,1773021040646,-1206.0,0.0001885,2]
[408010065,1773021040655,-453.13863462,0.00018875,2]
[408010066,1773021040665,-453.11,0.00018875,2]
[408010067,1773021040675,-2000.0,0.00018884,2]